fUSD/lending_fUSD_20240113
["ID","MTS","AMOUNT","RATE_DAILY","PERIOD"]
[311453636,1705138290048,-500.0,0.00027945,2]
[311453637,1705138290059,-902.21,0.00027945,2]
[311453638,1705138290069,-500.0,0.00027945,2]
[311453639,1705138290079,-500.0,0.00027945,2]
[311453640,1705138290090,-500.0,0.00027945,2]
[311453641,1705138290100,-578.89,0.00027945,2]
[311453642,1705138290110,-512.74,0.00027945,2]
[311453643,1705138290120,-1511.74,0.00027945,2]
[311453644,1705138290130,-500.0,0.00027945,2]
[311453645,1705138290140,-4968.27,0.00027945,2]
[311453646,1705138290150,-502.04612836,0.00027945,2]
[311453647,1705138290160,-510.01,0.00027945,2]
[311453648,1705138290171,-500.0,0.00027945,2]
[311453649,1705138290181,-547.13,0.00027945,2]
[311453650,1705138290191,-500.0,0.00027945,2]
[311453651,1705138290202,-500.0,0.00027945,2]
[311453652,1705138290211,-983.01,0.00027945,2]
[311453653,1705138290222,-500.0,0.00027945,2]
[311453654,1705138290232,-500.0,0.00027945,2]
[311453655,1705138290243,-500.0,0.00027945,15]
[311453656,1705138290253,-500.0,0.00027945,2]
[311453657,1705138290266,-500.0,0.00027945,2]
[311453658,1705138290276,-421.29908164,0.00027945,2]
[311453659,1705138290288,-500.0,0.00027945,2]
[311453660,1705138290298,-500.0,0.00027945,2]
[311453661,1705138290308,-1760.82,0.00027945,2]
[311453662,1705138290318,-500.0,0.00027945,2]
[311453663,1705138290329,-500.0,0.00027945,2]
[311453664,1705138290339,-500.0,0.00027945,2]
[311453665,1705138290349,-524.88,0.00027945,2]
[311453666,1705138290359,-596.45,0.00027945,2]
[311453667,1705138290369,-500.0,0.00027945,2]
[311453668,1705138290379,-500.0,0.00027945,2]
[311453669,1705138290389,-500.0,0.00027945,2]
[311453670,1705138290399,-500.0,0.00027945,2]
[311453671,1705138290409,-500.0,0.00027945,2]
[311453672,1705138290419,-6115.51,0.00027945,2]
[311453673,1705138290430,-903.97,0.00027945,2]
[311453674,1705138290439,-17007.8,0.00027945,2]
[311453675,1705138290449,-500.0,0.00027945,2]
[311453676,1705138290459,-500.0,0.00027945,2]
[311453677,1705138290469,-2373.62,0.00027945,2]
[311453678,1705138290479,-500.0,0.00027945,2]
[311453679,1705138290488,-1388.65,0.00027945,2]
[311453680,1705138290498,-500.0,0.00027945,2]
[311453681,1705138290510,-500.0,0.00027945,2]
[311453682,1705138290519,-500.0,0.00027945,2]
[311453683,1705138290529,-500.0,0.00027945,2]
[311453684,1705138290539,-525.66119103,0.00027945,2]
[311453685,1705138290549,-505.33629413,0.00027945,2]
[311453686,1705138290560,-500.0,0.00027945,2]
[311453687,1705138290570,-500.0,0.00027945,2]
[311453688,1705138290580,-500.0,0.00027945,2]
[311453689,1705138290591,-2089.98,0.00027945,2]
[311453690,1705138290601,-500.0,0.00027945,2]
[311453691,1705138290611,-500.0,0.00027945,2]
[311453692,1705138290621,-500.0,0.00027945,2]
[311453693,1705138290631,-500.0,0.00027945,2]
[311453694,1705138290642,-1173.75,0.00027945,2]
[311453695,1705138290652,-500.0,0.00027945,2]
[311453696,1705138290662,-490.64800008,0.00027945,2]
[311453697,1705138291773,-9.35199992,0.00027945,2]
[311453698,1705138291783,-500.0,0.00027945,2]
[311453699,1705138291793,-500.0,0.00027945,2]
[311453700,1705138291803,-500.0,0.00027945,2]
[311453701,1705138291812,-500.0,0.00027945,2]
[311453702,1705138291822,-500.0,0.00027945,2]
[311453703,1705138291833,-500.0,0.00027945,2]
[311453704,1705138291844,-872.31,0.00027945,2]
[311453705,1705138291859,-500.0,0.00027945,2]
[311453706,1705138291869,-500.0,0.00027945,2]
[311453707,1705138291879,-500.0,0.00027945,2]
[311453708,1705138291890,-500.0,0.00027945,2]
[311453709,1705138291899,-802.05,0.00027945,2]
[311453710,1705138291910,-500.0,0.00027945,2]
[311453711,1705138291920,-500.0,0.00027945,2]
[311453712,1705138291930,-500.0,0.00027945,2]
[311453713,1705138291940,-522.78939572,0.00027945,2]
[311453714,1705138291950,-500.0,0.00027945,2]
[311453715,1705138291960,-500.0,0.00027945,2]
[311453716,1705138291970,-899.66,0.00027945,2]
[311453717,1705138291985,-500.0,0.00027945,2]
[311453718,1705138291995,-507.67330749,0.00027945,2]
[311453719,1705138292005,-500.0,0.00027945,2]
[311453720,1705138292015,-1477.13,0.00027945,2]
[311453721,1705138292025,-647.72,0.00027945,2]
[311453722,1705138292035,-500.0,0.00027945,2]
[311453723,1705138292044,-500.0,0.00027945,2]
[311453724,1705138292055,-500.0,0.00027945,2]
[311453725,1705138292065,-500.0,0.00027945,2]
[311453726,1705138292074,-1000.0,0.00027945,7]
[311453727,1705138292084,-1089.63,0.00027945,2]
[311453728,1705138292094,-500.0,0.00027945,2]
[311453729,1705138292104,-532.51,0.00027945,2]
[311453730,1705138292114,-500.0,0.00027945,2]
[311453731,1705138292123,-500.0,0.00027945,2]
[311453732,1705138292132,-500.0,0.00027945,2]
[311453733,1705138292141,-700.8,0.00027945,2]
[311453734,1705138292151,-500.0,0.00027945,2]
[311453735,1705138292161,-700.32,0.00027945,2]
[311453736,1705138292170,-14701.13,0.00027945,2]
[311453737,1705138292180,-637.97,0.00027945,2]
[311453738,1705138292190,-900.7,0.00027945,2]
[311453739,1705138292199,-500.0,0.00027945,2]
[311453740,1705138292209,-504.65409169,0.00027945,2]
[311453741,1705138292219,-549.54,0.00027945,2]
[311453742,1705138292229,-500.0,0.00027945,2]
[311453743,1705138292238,-500.0,0.00027945,2]
[311453744,1705138292248,-500.0,0.00027945,2]
[311453745,1705138292258,-500.0,0.00027945,2]
[311453746,1705138292267,-238.98861531,0.00027945,2]
[311453747,1705138292277,-500.0,0.00027945,2]
[311453748,1705138292287,-673.95,0.00027945,2]
[311453749,1705138292297,-500.0,0.00027945,2]
[311453750,1705138292307,-386.16850996,0.00027945,2]
[311453751,1705138292492,233.51,0.00020053,2]
[311453752,1705138292641,233.51,0.00022317,2]
[311453753,1705138293044,-233.51,0.00024581,2]
[311453754,1705138293054,-233.51,0.00026845,2]
[311453755,1705138293063,-149.7592413,0.00027397,2]
[311453756,1705138293185,-304.9395219,0.00027397,2]
[311453757,1705138294230,-699.8140997,0.00022894,2]
[311453758,1705138294243,-4300.1859003,0.00022894,2]
[311453759,1705138294579,-156.84378542,0.000229,2]
[311453760,1705138294589,-45.3012368,0.00027397,2]
[311453761,1705138294598,-500.0,0.00027397,2]
[311453762,1705138294607,-500.0,0.00027397,2]
[311453763,1705138294616,-871.82,0.00027397,2]
[311453764,1705138294626,-382.87544168,0.00027397,2]
[311453765,1705138294635,-500.0,0.00027397,2]
[311453766,1705138294644,-500.0,0.00027671,2]
[311453767,1705138294653,-500.0,0.00027671,2]
[311453768,1705138294662,-500.0,0.00027671,2]
[311453769,1705138294671,-871.82,0.00027671,2]
[311453770,1705138294681,-500.0,0.00027671,2]
[311453771,1705138294690,-113.83149004,0.00027945,2]
[311453772,1705138294699,-500.0,0.00027945,2]
[311453773,1705138294709,-662.16,0.00027945,2]
[311453774,1705138294718,-686.11,0.00027945,2]
[311453775,1705138294730,-500.0,0.00027945,2]
[311453776,1705138294740,-500.0,0.00027945,2]
[311453777,1705138294750,-1135.9,0.00027945,2]
[311453778,1705138294760,-500.0,0.00027945,2]
[311453779,1705138294770,-500.0,0.00027945,2]
[311453780,1705138294779,-500.0,0.00027945,2]
[311453781,1705138294789,-500.0,0.00027945,2]
[311453782,1705138294799,-500.0,0.00027945,2]
[311453783,1705138294808,-500.0,0.00027945,2]
[311453784,1705138294817,-500.0,0.00027945,2]
[311453785,1705138294827,-500.0,0.00027945,2]
[311453786,1705138294838,-500.0,0.00027945,2]
[311453787,1705138294847,-500.0,0.00027945,2]
[311453788,1705138294856,-500.0,0.00027945,2]
[311453789,1705138294866,-500.0,0.00027945,2]
[311453790,1705138294875,-500.0,0.00027945,2]
[311453791,1705138294885,-1375.91,0.00027945,2]
[311453792,1705138294894,-500.0,0.00027945,2]
[311453793,1705138294903,-500.0,0.00027945,2]
[311453794,1705138294913,-3093.64,0.00027945,2]
[311453795,1705138294922,-4643.14,0.00027945,2]
[311453796,1705138294932,-4221.18,0.00027945,2]
[311453797,1705138294941,-1564.8,0.00027945,2]
[311453798,1705138294950,-500.0,0.00027945,2]
[311453799,1705138294960,-500.0,0.00027945,2]
[311453800,1705138294970,-500.0,0.00027945,2]
[311453801,1705138294981,-500.0,0.00027945,2]
[311453802,1705138294991,-500.0,0.00027945,2]
[311453803,1705138295000,-500.0,0.00027945,2]
[311453804,1705138295009,-500.0,0.00027945,2]
[311453805,1705138295019,-500.0,0.00027945,2]
[311453806,1705138295029,-500.0,0.00027945,2]
[311453807,1705138295038,-500.0,0.00027945,2]
[311453808,1705138295047,-1217.27,0.00027945,2]
[311453809,1705138295057,-941.33,0.00027945,2]
[311453810,1705138295067,-500.0,0.00027945,2]
[311453811,1705138295077,-500.0,0.00027945,2]
[311453812,1705138295088,-500.0,0.00027945,2]
[311453813,1705138295098,-500.0,0.00027945,2]
[311453814,1705138295107,-500.0,0.00027945,2]
[311453815,1705138295116,-500.0,0.00027945,2]
[311453816,1705138295125,-515.73,0.00027945,2]
[311453817,1705138295136,-500.0,0.00027945,2]
[311453818,1705138295146,-500.0,0.00027945,2]
[311453819,1705138295155,-500.0,0.00027945,2]
[311453820,1705138295165,-942.33,0.00027945,2]
[311453821,1705138295175,-500.0,0.00027945,2]
[311453822,1705138295185,-500.0,0.00027945,2]
[311453823,1705138295195,-500.0,0.00027945,2]
[311453824,1705138295208,-500.0,0.00027945,2]
[311453825,1705138295217,-500.0,0.00027945,2]
[311453826,1705138295227,-500.0,0.00027945,2]
[311453827,1705138295237,-771.73,0.00027945,2]
[311453828,1705138295246,-500.0,0.00027945,2]
[311453829,1705138295255,-840.4,0.00027945,2]
[311453830,1705138295265,-730.49,0.00027945,2]
[311453831,1705138295275,-500.0,0.00027945,2]
[311453832,1705138295285,-986.54,0.00027945,2]
[311453833,1705138295295,-500.0,0.00027945,2]
[311453834,1705138295304,-500.0,0.00027945,2]
[311453835,1705138295314,-500.0,0.00027945,2]
[311453836,1705138295324,-1303.9,0.00027945,2]
[311453837,1705138295334,-500.0,0.00027945,2]
[311453838,1705138295343,-238.74954015,0.00027945,2]
[311453839,1705138295353,-500.0,0.00027945,2]
[311453840,1705138295362,-500.0,0.00027945,2]
[311453841,1705138295372,-500.0,0.00027945,2]
[311453842,1705138295382,-500.0,0.00027945,2]
[311453843,1705138295392,-500.0,0.00027945,2]
[311453844,1705138295402,-500.0,0.00027945,2]
[311453845,1705138295412,-500.0,0.00027945,2]
[311453846,1705138295422,-500.0,0.00027945,2]
[311453847,1705138295431,-500.0,0.00027945,2]
[311453848,1705138295441,-500.0,0.00027945,2]
[311453849,1705138295452,-649.81,0.00027945,2]
[311453850,1705138295462,-564.12830792,0.00027945,2]
[311453851,1705138295472,-500.0,0.00027945,2]
[311453852,1705138295482,-500.0,0.00027945,2]
[311453853,1705138295491,-500.0,0.00027945,2]
[311453854,1705138295500,-500.0,0.00027945,2]
[311453855,1705138295510,-586.86,0.00027945,2]
[311453856,1705138295519,-538.83792283,0.00027945,2]
[311453857,1705138295528,-559.73,0.00027945,2]
[311453858,1705138295538,-500.0,0.00027945,2]
[311453859,1705138295547,-500.0,0.00027945,2]
[311453860,1705138295556,-500.0,0.00027945,2]
[311453861,1705138295566,-849.31,0.00027945,2]
[311453862,1705138295575,-625.46,0.00027945,2]
[311453863,1705138295585,-500.0,0.00027945,2]
[311453864,1705138295594,-500.0,0.00027945,2]
[311453865,1705138295603,-521.4146523,0.00027945,2]
[311453866,1705138295612,-8992.77,0.00027945,2]
[311453867,1705138295621,-500.0,0.00027945,2]
[311453868,1705138295631,-1884.06,0.00027945,2]
[311453869,1705138295641,-1009.72,0.00027945,2]
[311453870,1705138295650,-1633.78,0.00027945,2]
[311453871,1705138295662,-500.0,0.00027945,2]
[311453872,1705138295671,-500.0,0.00027945,2]
[311453873,1705138295681,-500.0,0.00027945,2]
[311453874,1705138295690,-500.0,0.00027945,2]
[311453875,1705138295700,-500.0,0.00027945,2]
[311453876,1705138295709,-500.0,0.00027945,2]
[311453877,1705138295719,-516.95,0.00027945,2]
[311453878,1705138295728,-531.67913783,0.00027945,2]
[311453879,1705138295738,-500.0,0.00027945,2]
[311453880,1705138295748,-615.1,0.00027945,2]
[311453881,1705138295757,-500.0,0.00027945,2]
[311453882,1705138295769,-500.0,0.00027945,2]
[311453883,1705138295780,-500.0,0.00027945,2]
[311453884,1705138295790,-500.0,0.00027945,2]
[311453885,1705138295799,-556.48,0.00027945,2]
[311453886,1705138295809,-502.36855736,0.00027945,2]
[311453887,1705138295818,-500.0,0.00027945,2]
[311453888,1705138295828,-500.0,0.00027945,2]
[311453889,1705138295837,-500.0,0.00027945,2]
[311453890,1705138295846,-2757.81,0.00027945,2]
[311453891,1705138295856,-509.64402853,0.00027945,2]
[311453892,1705138295866,-647.3,0.00027945,2]
[311453893,1705138295876,-954.81105449,0.00027945,2]
[311453894,1705138295930,-1976.57894551,0.00027945,2]
[311453895,1705138295940,-500.0,0.00027945,2]
[311453896,1705138295950,-500.0,0.00027945,2]
[311453897,1705138295959,-500.0,0.00027945,2]
[311453898,1705138295969,-8611.72,0.00027945,2]
[311453899,1705138295979,-500.0,0.00027945,2]
[311453900,1705138295989,-624.56,0.00027945,2]
[311453901,1705138295998,-1583.3,0.00027945,2]
[311453902,1705138296008,-500.0,0.00027945,2]
[311453903,1705138296018,-500.0,0.00027945,2]
[311453904,1705138296027,-500.0,0.00027945,2]
[311453905,1705138296037,-1183.4,0.00027945,2]
[311453906,1705138296047,-500.0,0.00027945,2]
[311453907,1705138296057,-382.70193669,0.00027945,2]
[311453908,1705138296070,-117.29806331,0.00027945,2]
[311453909,1705138296079,-500.0,0.00027945,2]
[311453910,1705138296089,-500.0,0.00027945,2]
[311453911,1705138296098,-640.91,0.00027945,2]
[311453912,1705138296107,-500.0,0.00027945,2]
[311453913,1705138296116,-547.42,0.00027945,2]
[311453914,1705138296125,-500.0,0.00027945,2]
[311453915,1705138296135,-500.0,0.00027945,2]
[311453916,1705138296144,-500.0,0.00027945,2]
[311453917,1705138296153,-861.15,0.00027945,2]
[311453918,1705138296162,-1248.12,0.00027945,2]
[311453919,1705138296172,-500.0,0.00027945,2]
[311453920,1705138296181,-500.0,0.00027945,2]
[311453921,1705138296191,-500.0,0.00027945,2]
[311453922,1705138296201,-500.0,0.00027945,2]
[311453923,1705138296210,-500.0,0.00027945,2]
[311453924,1705138296219,-500.0,0.00027945,2]
[311453925,1705138296229,-500.0,0.00027945,2]
[311453926,1705138296238,-500.0,0.00027945,2]
[311453927,1705138296248,-61.72993669,0.00027945,2]
[311453928,1705138296259,-968.03006331,0.00027945,2]
[311453929,1705138296270,-39.14188123,0.00027945,2]
[311453930,1705138297272,-5014.57192245,0.00022784,2]
[311453931,1705138297316,-2686.89724749,0.00022784,2]
[311453932,1705138297328,-2347.46759022,0.00022784,2]
[311453933,1705138297404,-541.0,0.00022784,2]
[311453934,1705138297624,-67764.88301294,0.00022784,2]
[311453935,1705138297635,-473.397,0.00022784,2]
[311453936,1705138297645,-19210.04155673,0.00022784,2]
[311453937,1705138297656,-2696.57957017,0.00022784,2]
[311453938,1705138297666,-156.84378542,0.000229,2]
[311453939,1705138297674,-2805.46065223,0.00023287,2]
[311453940,1705138297683,-500.0,0.00027397,2]
[311453941,1705138297693,-500.0,0.00027397,2]
[311453942,1705138297702,-500.0,0.00027397,2]
[311453943,1705138297711,-500.0,0.00027671,2]
[311453944,1705138297720,-500.0,0.00027671,2]
[311453945,1705138297730,-460.85811877,0.00027945,2]
[311453946,1705138297738,-687.75,0.00027945,2]
[311453947,1705138297748,-500.0,0.00027945,2]
[311453948,1705138297757,-1321.91,0.00027945,2]
[311453949,1705138297769,-500.0,0.00027945,2]
[311453950,1705138297779,-500.0,0.00027945,2]
[311453951,1705138297788,-500.0,0.00027945,2]
[311453952,1705138297798,-500.0,0.00027945,2]
[311453953,1705138297807,-574.07,0.00027945,2]
[311453954,1705138297816,-500.0,0.00027945,2]
[311453955,1705138297825,-501.73278955,0.00027945,2]
[311453956,1705138297835,-772.89,0.00027945,2]
[311453957,1705138297844,-500.0,0.00027945,2]
[311453958,1705138297853,-745.77,0.00027945,2]
[311453959,1705138297862,-182.58508386,0.00027945,2]
[311453960,1705138298149,-317.41491614,0.00027945,2]
[311453961,1705138298158,-500.0,0.00027945,2]
[311453962,1705138298167,-860.05,0.00027945,2]
[311453963,1705138298176,-500.0,0.00027945,2]
[311453964,1705138298185,-516.08756699,0.00027945,2]
[311453965,1705138298194,-500.0,0.00027945,2]
[311453966,1705138298203,-500.0,0.00027945,2]
[311453967,1705138298212,-500.0,0.00027945,2]
[311453968,1705138298222,-500.0,0.00027945,2]
[311453969,1705138298230,-500.0,0.00027945,2]
[311453970,1705138298240,-798.48,0.00027945,2]
[311453971,1705138298249,-500.0,0.00027945,2]
[311453972,1705138298258,-500.0,0.00027945,2]
[311453973,1705138298267,-921.96,0.00027945,2]
[311453974,1705138298277,-500.0,0.00027945,2]
[311453975,1705138298286,-500.0,0.00027945,2]
[311453976,1705138298295,-500.0,0.00027945,2]
[311453977,1705138298304,-500.0,0.00027945,2]
[311453978,1705138298313,-1097.8731498,0.00027945,2]
[311453979,1705138837140,1250.0,0.00022,3]
[311453997,1705139437735,-226.63110142,0.000227,2]
[311453998,1705139437746,-206.54,0.00022702,2]
[311453999,1705139437756,-215.21809469,0.00022759,2]
[311454000,1705139437766,-4382.50416613,0.00022782,2]
[311454001,1705139437903,-14727.78219561,0.00022782,2]
[311454002,1705139437912,-13707.03512153,0.00022782,2]
[311454003,1705139437921,-2156.55364457,0.00022783,2]
[311454004,1705139437930,-450.516,0.000228,2]
[311454005,1705139437941,-200.0,0.00022816,2]
[311454006,1705139437950,-5000.0,0.000229,2]
[311454007,1705139437961,-5345.34926051,0.000229,2]
[311454008,1705139437972,-250.0,0.000229,2]
[311454009,1705139437981,-180.4,0.00023,2]
[311454010,1705139437990,-235.0,0.00023485,2]
[311454011,1705139438000,-15498.262,0.00023485,2]
[311454012,1705139438009,-150.0,0.00023485,2]
[311454013,1705139438019,-151.015,0.00023485,2]
[311454014,1705139438028,-150.185,0.00023485,2]
[311454015,1705139438037,-200.155,0.00023485,2]
[311454016,1705139438047,-500.0,0.00023634,2]
[311454017,1705139438056,-200.0,0.00023634,2]
[311454018,1705139438066,-1300.0,0.00024,3]
[311454019,1705139438075,-800.0,0.00024418,2]
[311454020,1705139438084,-500.0,0.00024451,2]
[311454021,1705139438094,-200.0,0.00024451,2]
[311454022,1705139438103,-202.76,0.0002463,2]
[311454023,1705139438113,-222.63,0.00024633,2]
[311454024,1705139438122,-250.0,0.00024661,2]
[311454025,1705139438131,-158.72,0.00024804,2]
[311454026,1705139438141,-206.54,0.00024966,2]
[311454027,1705139438150,-630.26679258,0.00025,2]
[311454028,1705139438159,-158.72,0.00025128,2]
[311454029,1705139438169,-167.93,0.00025215,2]
[311454030,1705139438178,-158.72,0.00025451,2]
[311454031,1705139438188,-797.24,0.00025568,2]
[311454032,1705139438197,-222.63,0.00025612,2]
[311454033,1705139438206,-158.72,0.00025774,2]
[311454034,1705139438216,-1350.0,0.00026,3]
[311454035,1705139438226,-150.0,0.00026,2]
[311454036,1705139438236,-150.0,0.00026079,2]
[311454037,1705139438245,-500.0,0.00026086,2]
[311454038,1705139438256,-200.0,0.00026086,2]
[311454039,1705139438267,-158.72,0.00026097,2]
[311454040,1705139438276,-206.0,0.0002627,2]
[311454041,1705139438285,-417.95,0.00026384,2]
[311454042,1705139438295,-408.12,0.00026384,2]
[311454043,1705139438304,-408.12,0.00026384,2]
[311454044,1705139438313,-417.95,0.00026384,2]
[311454045,1705139438322,-408.12,0.00026384,2]
[311454046,1705139438331,-417.95,0.00026384,2]
[311454047,1705139438340,-404.39,0.00026384,2]
[311454048,1705139438350,-413.92,0.00026384,2]
[311454049,1705139438359,-6631.72,0.00026575,2]
[311454050,1705139438369,-222.63,0.0002659,2]
[311454051,1705139438379,-153.1,0.00026618,2]
[311454052,1705139438391,-1003.56470442,0.00026849,2]
[311454053,1705139438400,-2278.48401393,0.00027,2]
[311454054,1705139438410,-155.0,0.00027,2]
[311454055,1705139438419,-40017.8433714,0.00027,2]
[311454056,1705139438428,-1058.8596925,0.00027118,2]
[311454057,1705139438437,-150.0,0.00027123,2]
[311454058,1705139438446,-150.0,0.00027123,2]
[311454059,1705139438455,-150.0,0.00027123,2]
[311454060,1705139438465,-206.54,0.0002723,2]
[311454061,1705139438476,-156.84378542,0.00027294,2]
[311454062,1705139438485,-332.41924985,0.00027297,2]
[311454063,1705139438494,-1893.08104233,0.00027297,2]
[311454064,1705139438503,-2003.88092358,0.00027297,2]
[311454065,1705139438513,-156.84378542,0.00027329,2]
[311454066,1705139438522,-156.84378542,0.00027363,2]
[311454067,1705139438531,-688.47,0.0002738,3]
[311454068,1705139438541,-1100.61604042,0.00027386,2]
[311454069,1705139438550,-1143.43021753,0.00027386,2]
[311454070,1705139438559,-205570.59,0.0002739,2]
[311454071,1705139438568,-150.0,0.00027394,2]
[311454072,1705139438577,-500.0,0.00027396,2]
[311454073,1705139438587,-500.0,0.00027396,2]
[311454074,1705139438596,-500.0,0.00027396,2]
[311454075,1705139438605,-500.0,0.00027396,2]
[311454076,1705139438614,-500.0,0.00027396,2]
[311454077,1705139438623,-500.0,0.00027396,2]
[311454078,1705139438633,-220.83,0.00027396,2]
[311454079,1705139438646,-116171.54585642,0.00027396,2]
[311454080,1705139438717,-707342.9000514,0.00027396,2]
[311454081,1705139438727,-503.28926492,0.00027397,2]
[311454082,1705139438737,-400.25190917,0.00027397,2]
[311454083,1705139438747,-500.0,0.00027397,2]
[311454084,1705139438756,-500.0,0.00027397,2]
[311454085,1705139438765,-306.5185116,0.00027397,2]
[311454086,1705139438775,-208.39997204,0.00027397,2]
[311454087,1705139438784,-612.90035278,0.00027397,2]
[311454088,1705139438793,-511.037094,0.00027397,2]
[311454089,1705139438802,-500.0,0.00027397,2]
[311454090,1705139438811,-500.0,0.00027397,2]
[311454091,1705139438821,-500.0,0.00027397,2]
[311454092,1705139438830,-500.0,0.00027397,2]
[311454093,1705139438839,-500.0,0.00027397,2]
[311454094,1705139438848,-500.0,0.00027397,2]
[311454095,1705139438857,-500.0,0.00027397,2]
[311454096,1705139438867,-500.0,0.00027397,2]
[311454097,1705139438876,-500.0,0.00027397,2]
[311454098,1705139438886,-500.0,0.00027397,2]
[311454099,1705139438895,-500.0,0.00027397,2]
[311454100,1705139438904,-500.0,0.00027397,2]
[311454101,1705139438913,-617.88764169,0.00027397,2]
[311454102,1705139438923,-500.0,0.00027397,2]
[311454103,1705139438932,-516.82476476,0.00027397,2]
[311454104,1705139438941,-517.04398922,0.00027397,2]
[311454105,1705139438950,-500.0,0.00027397,2]
[311454106,1705139438959,-500.0,0.00027397,2]
[311454107,1705139438968,-500.0,0.00027397,2]
[311454108,1705139438979,-500.0,0.00027397,2]
[311454109,1705139438988,-500.0,0.00027397,2]
[311454110,1705139438998,-500.0,0.00027397,2]
[311454111,1705139439008,-521.16357158,0.00027397,2]
[311454112,1705139439017,-500.0,0.00027397,2]
[311454113,1705139439027,-500.0,0.00027397,2]
[311454114,1705139439037,-509.79647054,0.00027397,2]
[311454115,1705139439046,-500.0,0.00027397,2]
[311454116,1705139439055,-500.0,0.00027397,2]
[311454117,1705139439065,-500.0,0.00027397,2]
[311454118,1705139439074,-500.0,0.00027397,2]
[311454119,1705139439084,-500.0,0.00027397,2]
[311454120,1705139439093,-500.0,0.00027397,2]
[311454121,1705139439102,-500.0,0.00027397,2]
[311454122,1705139439112,-500.0,0.00027397,2]
[311454123,1705139439121,-500.0,0.00027397,2]
[311454124,1705139439131,-500.0,0.00027397,2]
[311454125,1705139439140,-631.32307104,0.00027397,2]
[311454126,1705139439149,-500.0,0.00027397,2]
[311454127,1705139439158,-500.0,0.00027397,2]
[311454128,1705139439167,-500.0,0.00027397,2]
[311454129,1705139439177,-500.0,0.00027397,2]
[311454130,1705139439186,-500.0,0.00027397,2]
[311454131,1705139439195,-500.0,0.00027397,2]
[311454132,1705139439205,-500.0,0.00027397,2]
[311454133,1705139439214,-500.0,0.00027397,2]
[311454134,1705139439225,-500.0,0.00027397,2]
[311454135,1705139439233,-500.0,0.00027397,2]
[311454136,1705139439242,-500.0,0.00027397,2]
[311454137,1705139439251,-500.0,0.00027397,2]
[311454138,1705139439260,-185.45941157,0.00027397,2]
[311454139,1705139439269,-500.0,0.00027397,2]
[311454140,1705139439278,-543.80351854,0.00027397,2]
[311454141,1705139439287,-500.0,0.00027397,2]
[311454142,1705139439298,-500.0,0.00027397,2]
[311454143,1705139439308,-500.0,0.00027397,2]
[311454144,1705139439318,-500.0,0.00027397,2]
[311454145,1705139439327,-500.0,0.00027397,2]
[311454146,1705139439336,-500.0,0.00027397,2]
[311454147,1705139439346,-500.0,0.00027397,2]
[311454148,1705139439354,-500.0,0.00027397,2]
[311454149,1705139439363,-500.0,0.00027397,2]
[311454150,1705139439372,-500.0,0.00027397,2]
[311454151,1705139439381,-500.0,0.00027397,2]
[311454152,1705139439393,-500.0,0.00027397,2]